[Event "Early-Titled-Tuesday-Blitz-January-23-2024"]
[Site "Chess.com"]
[Date "2024.01.23"]
[Round "10"]
[White "wonderfultime"]
[Black "Sam_ChessMood"]
[Result "1-0"]
[WhiteElo "3045"]
[BlackElo "2927"]
[TimeControl "180+1"]
[EndTime "9:58:02 PST"]
[Termination "wonderfultime won by resignation"]

1. d4 {[%clk 0:03:00.9]} 1... Nf6 {[%clk 0:02:59.7]} 2. Nf3 {[%clk 0:03:00.7]}
2... d5 {[%clk 0:02:59.5]} 3. Bf4 {[%clk 0:03:01]} 3... c5 {[%clk 0:02:59.3]} 4.
c3 {[%clk 0:03:01.2]} 4... Qb6 {[%clk 0:02:54.2]} 5. Qc2 {[%clk 0:03:00.2]} 5...
cxd4 {[%clk 0:02:50.2]} 6. cxd4 {[%clk 0:02:59.4]} 6... Nc6 {[%clk 0:02:50.3]}
7. e3 {[%clk 0:02:56.6]} 7... Bf5 {[%clk 0:02:46]} 8. Qb3 {[%clk 0:02:55.4]}
8... Qxb3 {[%clk 0:02:39.6]} 9. axb3 {[%clk 0:02:56.3]} 9... Nb4 {[%clk
0:02:39.4]} 10. Bb5+ {[%clk 0:02:52.6]} 10... Bd7 {[%clk 0:02:39.4]} 11. Bxd7+
{[%clk 0:02:50.6]} 11... Nxd7 {[%clk 0:02:39.7]} 12. Ke2 {[%clk 0:02:47.4]}
12... a6 {[%clk 0:02:29.9]} 13. Rc1 {[%clk 0:02:44.7]} 13... Nc6 {[%clk
0:02:10.1]} 14. Nc3 {[%clk 0:02:43.1]} 14... e6 {[%clk 0:02:09]} 15. Nb5 {[%clk
0:02:43.2]} 15... Rc8 {[%clk 0:02:03.2]} 16. Nd6+ {[%clk 0:02:29.8]} 16... Bxd6
{[%clk 0:02:02.7]} 17. Bxd6 {[%clk 0:02:30.7]} 17... f6 {[%clk 0:01:59.3]} 18.
Rc3 {[%clk 0:02:25.7]} 18... Kf7 {[%clk 0:01:57.8]} 19. Rac1 {[%clk 0:02:26.3]}
19... g5 {[%clk 0:01:56.6]} 20. Ne1 {[%clk 0:02:15.3]} 20... e5 {[%clk
0:01:22.3]} 21. dxe5 {[%clk 0:02:13.9]} 21... fxe5 {[%clk 0:01:22.4]} 22. Nf3
{[%clk 0:02:10.1]} 22... Ke6 {[%clk 0:01:22.6]} 23. Ba3 {[%clk 0:02:08.7]} 23...
h6 {[%clk 0:01:22.5]} 24. Nd2 {[%clk 0:01:52.8]} 24... Nf6 {[%clk 0:01:12.5]}
25. f3 {[%clk 0:01:47]} 25... Rhd8 {[%clk 0:01:12.2]} 26. Bc5 {[%clk 0:01:45.4]}
26... Nd7 {[%clk 0:01:07.3]} 27. b4 {[%clk 0:01:45.8]} 27... Ncb8 {[%clk
0:00:59.5]} 28. e4 {[%clk 0:01:40.2]} 28... d4 {[%clk 0:00:58.2]} 29. Bxd4
{[%clk 0:01:39.3]} 29... Rxc3 {[%clk 0:00:49]} 30. Bxc3 {[%clk 0:01:39.2]} 30...
Nc6 {[%clk 0:00:49.4]} 31. Nb3 {[%clk 0:01:37.7]} 31... Rg8 {[%clk 0:00:44]} 32.
h3 {[%clk 0:01:29.2]} 32... h5 {[%clk 0:00:43.6]} 33. Rd1 {[%clk 0:01:21.7]}
33... g4 {[%clk 0:00:42.1]} 34. hxg4 {[%clk 0:01:19.1]} 34... hxg4 {[%clk
0:00:42.4]} 35. Ke3 {[%clk 0:01:18.1]} 35... gxf3 {[%clk 0:00:42.4]} 36. gxf3
{[%clk 0:01:19]} 36... Rh8 {[%clk 0:00:37.3]} 37. Rg1 {[%clk 0:01:09.9]} 37...
Rh2 {[%clk 0:00:34.6]} 38. Rg6+ {[%clk 0:01:05.4]} 38... Kf7 {[%clk 0:00:34.6]}
39. Rd6 {[%clk 0:00:59.4]} 39... Ke7 {[%clk 0:00:34.5]} 40. Rd2 {[%clk 0:00:56]}
40... Rh3 {[%clk 0:00:26]} 41. Nc5 {[%clk 0:00:54.1]} 41... Nxc5 {[%clk
0:00:13.9]} 42. bxc5 {[%clk 0:00:55]} 42... Rh6 {[%clk 0:00:14]} 43. Rd5 {[%clk
0:00:50.5]} 43... Re6 {[%clk 0:00:12]} 44. Rd2 {[%clk 0:00:35.5]} 44... Ke8
{[%clk 0:00:12.2]} 45. Rh2 {[%clk 0:00:35.8]} 45... Re7 {[%clk 0:00:11.6]} 46.
Rh6 {[%clk 0:00:36.1]} 46... Kd7 {[%clk 0:00:11.7]} 47. Rd6+ {[%clk 0:00:27.6]}
47... Kc7 {[%clk 0:00:11.8]} 48. f4 {[%clk 0:00:27.9]} 48... exf4+ {[%clk
0:00:11.7]} 49. Kxf4 {[%clk 0:00:28.8]} 49... b5 {[%clk 0:00:08.8]} 50. Bf6
{[%clk 0:00:26.8]} 50... Re8 {[%clk 0:00:08.7]} 51. e5 {[%clk 0:00:27.1]} 51...
b4 {[%clk 0:00:06.6]} 52. Kf5 {[%clk 0:00:22]} 52... a5 {[%clk 0:00:07]} 53. e6
{[%clk 0:00:22.5]} 53... a4 {[%clk 0:00:06.9]} 54. Kg6 {[%clk 0:00:17.2]} 54...
a3 {[%clk 0:00:05.8]} 55. bxa3 {[%clk 0:00:18.1]} 55... bxa3 {[%clk 0:00:06.5]}
56. Kf7 {[%clk 0:00:18.7]} 56... Ra8 {[%clk 0:00:04.4]} 57. Rd7+ {[%clk
0:00:14.6]} 57... Kc8 {[%clk 0:00:04.3]} 58. Rd1 {[%clk 0:00:15.5]} 58... Ra5
{[%clk 0:00:02.5]} 59. e7 {[%clk 0:00:09.5]} 59... Nxe7 {[%clk 0:00:02.5]} 60.
Bxe7 {[%clk 0:00:09.6]} 60... a2 {[%clk 0:00:02.3]} 61. Ra1 {[%clk 0:00:09.8]}
61... Kc7 {[%clk 0:00:02.8]} 62. Ke6 {[%clk 0:00:10.5]} 62... Kc6 {[%clk
0:00:03.4]} 63. Bd6 {[%clk 0:00:10.7]} 63... Ra3 {[%clk 0:00:02.9]} 64. Ke5
{[%clk 0:00:11.2]} 64... Ra4 {[%clk 0:00:03.5]} 65. Kf5 {[%clk 0:00:11.9]} 65...
Kd5 {[%clk 0:00:03.5]} 66. Be7 {[%clk 0:00:11.8]} 66... Kc6 {[%clk 0:00:03.2]}
67. Ke5 {[%clk 0:00:11.8]} 67... Ra7 {[%clk 0:00:03.4]} 68. Bg5 {[%clk
0:00:10.2]} 68... Ra4 {[%clk 0:00:03.4]} 69. Be3 {[%clk 0:00:10.9]} 69... Kb5
{[%clk 0:00:02]} 70. Kd5 {[%clk 0:00:10.7]} 70... Ra8 {[%clk 0:00:02.2]} 71. Bf4
{[%clk 0:00:10.5]} 71... Ra3 {[%clk 0:00:01.6]} 72. c6 {[%clk 0:00:09.7]} 72...
Rd3+ {[%clk 0:00:01.5]} 73. Ke4 {[%clk 0:00:10.4]} 73... Rc3 {[%clk 0:00:01.9]}
74. c7 {[%clk 0:00:10.7]} 74... Rc2 {[%clk 0:00:02.5]} 75. Rxa2 {[%clk
0:00:10.9]} 1-0

[Event "Early-Titled-Tuesday-Blitz-January-23-2024"]
[Site "Chess.com"]
[Date "2024.01.23"]
[Round "10"]
[White "bubeliang"]
[Black "Zavgorodniy_Sergiy"]
[Result "0-1"]
[WhiteElo "2777"]
[BlackElo "2642"]
[TimeControl "180+1"]
[EndTime "9:58:04 PST"]
[Termination "Zavgorodniy_Sergiy won by checkmate"]

1. e4 {[%clk 0:02:56.9]} 1... e5 {[%clk 0:02:59.3]} 2. Nc3 {[%clk 0:02:54.3]}
2... Nf6 {[%clk 0:02:58.3]} 3. Bc4 {[%clk 0:02:54.3]} 3... Bb4 {[%clk
0:02:57.5]} 4. Nge2 {[%clk 0:02:53.9]} 4... O-O {[%clk 0:02:54.9]} 5. O-O {[%clk
0:02:54.2]} 5... c6 {[%clk 0:02:52.6]} 6. d4 {[%clk 0:02:53.8]} 6... d5 {[%clk
0:02:52.1]} 7. exd5 {[%clk 0:02:53]} 7... cxd5 {[%clk 0:02:51.6]} 8. dxe5 {[%clk
0:02:49.4]} 8... dxc4 {[%clk 0:02:51]} 9. Qxd8 {[%clk 0:02:50.3]} 9... Rxd8
{[%clk 0:02:50.5]} 10. exf6 {[%clk 0:02:51.2]} 10... Bf5 {[%clk 0:02:41.9]} 11.
fxg7 {[%clk 0:02:42.4]} 11... Kxg7 {[%clk 0:02:37.2]} 12. Be3 {[%clk 0:02:29.2]}
12... Bxc2 {[%clk 0:02:35.7]} 13. a3 {[%clk 0:02:05.3]} 13... Ba5 {[%clk
0:02:26.5]} 14. Bd4+ {[%clk 0:02:00.3]} 14... Kg8 {[%clk 0:02:18.7]} 15. Bf6
{[%clk 0:01:57.4]} 15... Rd6 {[%clk 0:02:12.1]} 16. Be5 {[%clk 0:01:56.4]} 16...
Re6 {[%clk 0:02:10.7]} 17. Bg3 {[%clk 0:01:56.3]} 17... Nc6 {[%clk 0:02:09]} 18.
Nf4 {[%clk 0:01:56.4]} 18... Ree8 {[%clk 0:01:41.5]} 19. Ncd5 {[%clk 0:01:34.8]}
19... Kg7 {[%clk 0:01:29.6]} 20. Nh5+ {[%clk 0:01:33.8]} 20... Kg6 {[%clk
0:01:26.6]} 21. Ndf4+ {[%clk 0:01:24.4]} 21... Kh6 {[%clk 0:01:26.7]} 22. Nf6
{[%clk 0:01:20.7]} 22... Red8 {[%clk 0:01:11.4]} 23. Ng4+ {[%clk 0:00:49.5]}
23... Kg7 {[%clk 0:01:08.8]} 24. Bh4 {[%clk 0:00:49.8]} 24... Rd6 {[%clk
0:01:02.3]} 25. Bf6+ {[%clk 0:00:41.7]} 25... Rxf6 {[%clk 0:00:43.3]} 26. Nh5+
{[%clk 0:00:41.5]} 26... Kg6 {[%clk 0:00:43.6]} 27. Nhxf6 {[%clk 0:00:41.9]}
27... h5 {[%clk 0:00:39.6]} 28. Ne3 {[%clk 0:00:41.9]} 28... Bd3 {[%clk
0:00:39.6]} 29. Nfd5 {[%clk 0:00:40.7]} 29... Bxf1 {[%clk 0:00:37.6]} 30. Kxf1
{[%clk 0:00:41.1]} 30... b5 {[%clk 0:00:30.8]} 31. h4 {[%clk 0:00:34.7]} 31...
Ne5 {[%clk 0:00:30.4]} 32. a4 {[%clk 0:00:33.3]} 32... Rb8 {[%clk 0:00:27.6]}
33. Nf4+ {[%clk 0:00:31.3]} 33... Kh7 {[%clk 0:00:24.1]} 34. Nxh5 {[%clk
0:00:29.3]} 34... Bd2 {[%clk 0:00:20.4]} 35. Nd1 {[%clk 0:00:20]} 35... b4
{[%clk 0:00:19.8]} 36. Nf6+ {[%clk 0:00:18.4]} 36... Kg6 {[%clk 0:00:18.4]} 37.
Ne4 {[%clk 0:00:18.9]} 37... Bh6 {[%clk 0:00:15.3]} 38. Ne3 {[%clk 0:00:13.9]}
38... Rc8 {[%clk 0:00:13.4]} 39. Rc1 {[%clk 0:00:11.5]} 39... Bxe3 {[%clk
0:00:12.7]} 40. fxe3 {[%clk 0:00:12.4]} 40... Nd3 {[%clk 0:00:13.3]} 41. Rc2
{[%clk 0:00:09.7]} 41... b3 {[%clk 0:00:13.5]} 42. Rd2 {[%clk 0:00:10.3]} 42...
Re8 {[%clk 0:00:12.3]} 43. Nd6 {[%clk 0:00:05.1]} 43... Rxe3 {[%clk 0:00:12]}
44. Kg1 {[%clk 0:00:05.7]} 44... Re1+ {[%clk 0:00:08.7]} 45. Kh2 {[%clk
0:00:05.7]} 45... Ne5 {[%clk 0:00:09]} 46. Nb5 {[%clk 0:00:03.2]} 46... Rc1
{[%clk 0:00:08.8]} 47. Rd5 {[%clk 0:00:02.5]} 47... f6 {[%clk 0:00:07.9]} 48.
Nxa7 {[%clk 0:00:02.8]} 48... Rc2 {[%clk 0:00:05.4]} 49. a5 {[%clk 0:00:03.1]}
49... Rxb2 {[%clk 0:00:05.7]} 50. Nc8 {[%clk 0:00:03.7]} 50... Ra2 {[%clk
0:00:05.9]} 51. Ne7+ {[%clk 0:00:03.2]} 51... Kf7 {[%clk 0:00:06.5]} 52. Nf5
{[%clk 0:00:03.5]} 52... Ke6 {[%clk 0:00:06.4]} 53. Ne3 {[%clk 0:00:03]} 53...
b2 {[%clk 0:00:06.7]} 54. Rb5 {[%clk 0:00:03]} 54... c3 {[%clk 0:00:06.1]} 55.
Nc2 {[%clk 0:00:03.6]} 55... Rxa5 {[%clk 0:00:04.8]} 56. Rb3 {[%clk 0:00:02.3]}
56... Kd5 {[%clk 0:00:04.7]} 57. Ne3+ {[%clk 0:00:01.4]} 57... Kd4 {[%clk
0:00:04.8]} 58. Nc2+ {[%clk 0:00:01.7]} 58... Kd3 {[%clk 0:00:05.1]} 59. Ne1+
{[%clk 0:00:02]} 59... Kd2 {[%clk 0:00:05.4]} 60. Nf3+ {[%clk 0:00:01.5]} 60...
Nxf3+ {[%clk 0:00:04.9]} 61. gxf3 {[%clk 0:00:02.4]} 61... Kc2 {[%clk
0:00:05.3]} 62. Rb8 {[%clk 0:00:02.8]} 62... b1=Q {[%clk 0:00:05.7]} 63. Rg8
{[%clk 0:00:03]} 63... Qd1 {[%clk 0:00:05.3]} 64. h5 {[%clk 0:00:03.1]} 64...
Rxh5+ {[%clk 0:00:05.3]} 65. Kg3 {[%clk 0:00:03.3]} 65... Rg5+ {[%clk
0:00:05.9]} 66. Kf4 {[%clk 0:00:04.2]} 66... Rxg8 {[%clk 0:00:05.3]} 67. Kf5
{[%clk 0:00:05.1]} 67... Qd5+ {[%clk 0:00:04.4]} 68. Kxf6 {[%clk 0:00:03]} 68...
Rf8+ {[%clk 0:00:04.6]} 69. Ke7 {[%clk 0:00:03]} 69... Qf5 {[%clk 0:00:04.3]}
70. Kd6 {[%clk 0:00:03]} 70... Rf7 {[%clk 0:00:04.5]} 71. Kc6 {[%clk 0:00:03.9]}
71... Rd7 {[%clk 0:00:04.3]} 72. Kb6 {[%clk 0:00:04.3]} 72... Qd5 {[%clk
0:00:04.9]} 73. Ka6 {[%clk 0:00:05.2]} 73... Rb7 {[%clk 0:00:04.9]} 74. f4
{[%clk 0:00:05.2]} 74... Qb5# {[%clk 0:00:05.5]} 0-1

[Event "Early-Titled-Tuesday-Blitz-January-23-2024"]
[Site "Chess.com"]
[Date "2024.01.23"]
[Round "10"]
[White "JimDiGrease"]
[Black "Titus369"]
[Result "1-0"]
[WhiteElo "2944"]
[BlackElo "2662"]
[TimeControl "180+1"]
[EndTime "9:58:06 PST"]
[Termination "JimDiGrease won by checkmate"]

1. d4 {[%clk 0:02:57.5]} 1... d5 {[%clk 0:02:55.1]} 2. c4 {[%clk 0:02:58]} 2...
e6 {[%clk 0:02:54.3]} 3. Nf3 {[%clk 0:02:58.6]} 3... Nf6 {[%clk 0:02:55]} 4. Qc2
{[%clk 0:02:59.1]} 4... Be7 {[%clk 0:02:54.7]} 5. cxd5 {[%clk 0:02:59.4]} 5...
exd5 {[%clk 0:02:52.9]} 6. Bf4 {[%clk 0:02:59.8]} 6... c6 {[%clk 0:02:52.9]} 7.
e3 {[%clk 0:03:00.2]} 7... Nbd7 {[%clk 0:02:50.7]} 8. Nc3 {[%clk 0:03:00.1]}
8... Nf8 {[%clk 0:02:51.1]} 9. Bd3 {[%clk 0:03:00.2]} 9... Ne6 {[%clk
0:02:51.2]} 10. Bg3 {[%clk 0:02:59.8]} 10... O-O {[%clk 0:02:44.3]} 11. O-O
{[%clk 0:02:55.4]} 11... g6 {[%clk 0:02:38]} 12. Rab1 {[%clk 0:02:55]} 12... a5
{[%clk 0:02:37.7]} 13. a3 {[%clk 0:02:55.1]} 13... b6 {[%clk 0:02:31.6]} 14. b4
{[%clk 0:02:51.6]} 14... axb4 {[%clk 0:02:31.1]} 15. axb4 {[%clk 0:02:52]} 15...
c5 {[%clk 0:02:29.8]} 16. bxc5 {[%clk 0:02:30]} 16... bxc5 {[%clk 0:02:30.7]}
17. dxc5 {[%clk 0:02:28.6]} 17... Nxc5 {[%clk 0:02:21.1]} 18. Nd4 {[%clk
0:02:19.6]} 18... Bd7 {[%clk 0:02:08.6]} 19. Rfd1 {[%clk 0:02:17]} 19... Rc8
{[%clk 0:02:04.7]} 20. Qe2 {[%clk 0:02:09.3]} 20... Qa5 {[%clk 0:01:52.9]} 21.
Ncb5 {[%clk 0:02:03.5]} 21... Nxd3 {[%clk 0:01:50.4]} 22. Qxd3 {[%clk
0:02:03.4]} 22... Ne4 {[%clk 0:01:50.4]} 23. Ra1 {[%clk 0:01:55.4]} 23... Qb4
{[%clk 0:01:43.1]} 24. Rdb1 {[%clk 0:01:48.1]} 24... Qc4 {[%clk 0:01:41.4]} 25.
Qd1 {[%clk 0:01:41.6]} 25... Bf6 {[%clk 0:01:31.5]} 26. Rc1 {[%clk 0:01:08.3]}
26... Qb4 {[%clk 0:01:28]} 27. Rab1 {[%clk 0:01:05.8]} 27... Qe7 {[%clk
0:01:16.4]} 28. Bf4 {[%clk 0:01:02.2]} 28... Bxb5 {[%clk 0:01:13.4]} 29. Nxb5
{[%clk 0:01:02.2]} 29... Qd7 {[%clk 0:01:06.7]} 30. Qd3 {[%clk 0:00:55.5]} 30...
Nc5 {[%clk 0:01:02.8]} 31. Qe2 {[%clk 0:00:48.2]} 31... Ne6 {[%clk 0:01:01.1]}
32. Bg3 {[%clk 0:00:43.4]} 32... h5 {[%clk 0:00:55.8]} 33. h3 {[%clk 0:00:41.6]}
33... Kg7 {[%clk 0:00:53.3]} 34. Rd1 {[%clk 0:00:37.9]} 34... Rfd8 {[%clk
0:00:48.8]} 35. Nd6 {[%clk 0:00:29.3]} 35... Rc5 {[%clk 0:00:44.8]} 36. Nb7
{[%clk 0:00:29.3]} 36... Rdc8 {[%clk 0:00:42.3]} 37. Nxc5 {[%clk 0:00:29.3]}
37... Nxc5 {[%clk 0:00:40.4]} 38. Rbc1 {[%clk 0:00:21.8]} 38... Ne4 {[%clk
0:00:39.5]} 39. Rxc8 {[%clk 0:00:16.7]} 39... Qxc8 {[%clk 0:00:40.4]} 40. Rxd5
{[%clk 0:00:15.7]} 40... Qb7 {[%clk 0:00:23]} 41. Qd3 {[%clk 0:00:11.5]} 41...
Nc3 {[%clk 0:00:18.1]} 42. Rd7 {[%clk 0:00:11.1]} 42... Qb3 {[%clk 0:00:12.4]}
43. Bf4 {[%clk 0:00:10]} 43... Qb2 {[%clk 0:00:09.3]} 44. Qc4 {[%clk 0:00:07.1]}
44... Ne2+ {[%clk 0:00:04.1]} 45. Kh2 {[%clk 0:00:06.5]} 45... Nxf4 {[%clk
0:00:04.4]} 46. Qxf7+ {[%clk 0:00:05]} 46... Kh6 {[%clk 0:00:04.7]} 47. exf4
{[%clk 0:00:05.5]} 47... Bg7 {[%clk 0:00:03]} 48. Rd6 {[%clk 0:00:04.3]} 48...
Qc2 {[%clk 0:00:02.7]} 49. f5 {[%clk 0:00:03.8]} 49... Be5+ {[%clk 0:00:02.3]}
50. g3 {[%clk 0:00:01.9]} 50... Qxf2+ {[%clk 0:00:02.6]} 51. Kh1 {[%clk
0:00:02.3]} 51... Qf3+ {[%clk 0:00:02.7]} 52. Kg1 {[%clk 0:00:02.1]} 52... Qxg3+
{[%clk 0:00:03.1]} 53. Kf1 {[%clk 0:00:02.7]} 53... Qf4+ {[%clk 0:00:03.3]} 54.
Ke2 {[%clk 0:00:01.8]} 54... Qe4+ {[%clk 0:00:03.5]} 55. Kd1 {[%clk 0:00:02.4]}
55... Qh1+ {[%clk 0:00:03.1]} 56. Kc2 {[%clk 0:00:02.6]} 56... Qg2+ {[%clk
0:00:02.5]} 57. Rd2 {[%clk 0:00:02.6]} 57... Qg5 {[%clk 0:00:02.2]} 58. Qxg6+
{[%clk 0:00:02.3]} 58... Qxg6 {[%clk 0:00:02.2]} 59. fxg6 {[%clk 0:00:03.2]}
59... Kxg6 {[%clk 0:00:03.1]} 60. Kd3 {[%clk 0:00:03.7]} 60... Kf5 {[%clk
0:00:03.4]} 61. Rf2+ {[%clk 0:00:03.2]} 61... Kg5 {[%clk 0:00:03.6]} 62. Rf3
{[%clk 0:00:03.4]} 62... Bf4 {[%clk 0:00:02.5]} 63. Ke4 {[%clk 0:00:04.1]} 63...
Bc7 {[%clk 0:00:01.7]} 64. Rd3 {[%clk 0:00:03.9]} 64... Kh4 {[%clk 0:00:02]} 65.
Kf5 {[%clk 0:00:03.9]} 65... Bg3 {[%clk 0:00:02.2]} 66. Kg6 {[%clk 0:00:03.8]}
66... Kxh3 {[%clk 0:00:02.4]} 67. Kxh5 {[%clk 0:00:03.8]} 67... Kg2 {[%clk
0:00:03.3]} 68. Kg4 {[%clk 0:00:04.7]} 68... Bf2 {[%clk 0:00:03.4]} 69. Rd2
{[%clk 0:00:05.4]} 69... Kg1 {[%clk 0:00:03.3]} 70. Kf3 {[%clk 0:00:05.7]} 70...
Ba7 {[%clk 0:00:03.7]} 71. Rg2+ {[%clk 0:00:05.7]} 71... Kh1 {[%clk 0:00:03.9]}
72. Kg3 {[%clk 0:00:06.1]} 72... Bg1 {[%clk 0:00:03.8]} 73. Kh3 {[%clk
0:00:06.4]} 73... Bd4 {[%clk 0:00:03.8]} 74. Rd2 {[%clk 0:00:05.2]} 74... Bg1
{[%clk 0:00:04.3]} 75. Kg3 {[%clk 0:00:05.1]} 75... Bc5 {[%clk 0:00:04.4]} 76.
Rd5 {[%clk 0:00:05.5]} 76... Bg1 {[%clk 0:00:04.7]} 77. Rh5+ {[%clk 0:00:05.8]}
77... Bh2+ {[%clk 0:00:04.6]} 78. Rxh2+ {[%clk 0:00:06.4]} 78... Kg1 {[%clk
0:00:05.5]} 79. Re2 {[%clk 0:00:06.7]} 79... Kf1 {[%clk 0:00:05.2]} 80. Re3
{[%clk 0:00:07.6]} 80... Kg1 {[%clk 0:00:05.3]} 81. Re1# {[%clk 0:00:08.5]} 1-0

[Event "Early-Titled-Tuesday-Blitz-January-23-2024"]
[Site "Chess.com"]
[Date "2024.01.23"]
[Round "10"]
[White "NovozhilovSemen"]
[Black "Irishchessman16"]
[Result "1/2-1/2"]
[WhiteElo "2640"]
[BlackElo "2505"]
[TimeControl "180+1"]
[EndTime "9:58:13 PST"]
[Termination "Game drawn by repetition"]

1. d4 {[%clk 0:03:00.9]} 1... Nf6 {[%clk 0:02:58.9]} 2. Nf3 {[%clk 0:03:01]}
2... c5 {[%clk 0:02:58.3]} 3. d5 {[%clk 0:03:01.2]} 3... b5 {[%clk 0:02:56.4]}
4. Bg5 {[%clk 0:03:01]} 4... Qb6 {[%clk 0:02:55.8]} 5. c3 {[%clk 0:03:00.7]}
5... Bb7 {[%clk 0:02:53.6]} 6. Bxf6 {[%clk 0:03:00.4]} 6... gxf6 {[%clk
0:02:50.5]} 7. e4 {[%clk 0:03:00.4]} 7... Bh6 {[%clk 0:02:43.3]} 8. Nbd2 {[%clk
0:02:56.2]} 8... d6 {[%clk 0:02:40.7]} 9. a4 {[%clk 0:02:56.1]} 9... a6 {[%clk
0:02:40]} 10. axb5 {[%clk 0:02:51.7]} 10... axb5 {[%clk 0:02:39.7]} 11. Rxa8
{[%clk 0:02:52.6]} 11... Bxa8 {[%clk 0:02:38.6]} 12. Qb3 {[%clk 0:02:53.5]}
12... e6 {[%clk 0:02:29.8]} 13. Qxb5+ {[%clk 0:02:52.1]} 13... Qxb5 {[%clk
0:02:29.8]} 14. Bxb5+ {[%clk 0:02:53]} 14... Ke7 {[%clk 0:02:30.1]} 15. c4
{[%clk 0:02:53.2]} 15... Nd7 {[%clk 0:02:26.5]} 16. Ke2 {[%clk 0:02:53.5]} 16...
Rg8 {[%clk 0:02:25.4]} 17. g3 {[%clk 0:02:52.1]} 17... f5 {[%clk 0:02:23.3]} 18.
exf5 {[%clk 0:02:45.2]} 18... exd5 {[%clk 0:02:21.4]} 19. Ra1 {[%clk 0:02:45.3]}
19... Nb6 {[%clk 0:02:19.1]} 20. Ra7+ {[%clk 0:02:41.3]} 20... Kf6 {[%clk
0:02:18.3]} 21. Ra6 {[%clk 0:02:41.8]} 21... Rb8 {[%clk 0:02:11.2]} 22. b3
{[%clk 0:02:38.6]} 22... Kxf5 {[%clk 0:01:50.7]} 23. cxd5 {[%clk 0:02:35.5]}
23... Bxd5 {[%clk 0:01:46.9]} 24. Bd3+ {[%clk 0:02:34.2]} 24... Kf6 {[%clk
0:01:44.5]} 25. Nc4 {[%clk 0:02:23.7]} 25... Nxc4 {[%clk 0:01:39.3]} 26. Bxc4
{[%clk 0:02:15.9]} 26... Bxc4+ {[%clk 0:01:35.8]} 27. bxc4 {[%clk 0:02:15.7]}
27... Rb2+ {[%clk 0:01:28.8]} 28. Kf1 {[%clk 0:02:10.2]} 28... Ke6 {[%clk
0:01:27.6]} 29. Ne1 {[%clk 0:02:04]} 29... Rb1 {[%clk 0:01:13.2]} 30. Ke2 {[%clk
0:02:03.9]} 30... Rc1 {[%clk 0:01:12.2]} 31. Ra4 {[%clk 0:01:58.9]} 31... Bg7
{[%clk 0:01:09.1]} 32. f4 {[%clk 0:01:58]} 32... Bd4 {[%clk 0:00:46.5]} 33. g4
{[%clk 0:01:45.9]} 33... f5 {[%clk 0:00:33.4]} 34. g5 {[%clk 0:01:43.8]} 34...
Rc3 {[%clk 0:00:23.2]} 35. Nf3 {[%clk 0:01:27]} 35... Re3+ {[%clk 0:00:21]} 36.
Kf2 {[%clk 0:01:27.2]} 36... Re4+ {[%clk 0:00:15.1]} 37. Nxd4+ {[%clk
0:01:27.5]} 37... Rxd4 {[%clk 0:00:13]} 38. Ke3 {[%clk 0:01:27.3]} 38... Re4+
{[%clk 0:00:12.7]} 39. Kf3 {[%clk 0:01:27.6]} 39... Kf7 {[%clk 0:00:12.3]} 40.
Ra7+ {[%clk 0:01:25.1]} 40... Kg6 {[%clk 0:00:10.6]} 41. h4 {[%clk 0:01:24.1]}
41... Rxc4 {[%clk 0:00:09.6]} 42. h5+ {[%clk 0:01:24.4]} 42... Kxh5 {[%clk
0:00:09.3]} 43. Rxh7+ {[%clk 0:01:25.3]} 43... Kg6 {[%clk 0:00:09]} 44. Rh6+
{[%clk 0:01:26.2]} 44... Kg7 {[%clk 0:00:08.8]} 45. Rxd6 {[%clk 0:01:25.5]}
45... Rc3+ {[%clk 0:00:09]} 46. Ke2 {[%clk 0:01:25.5]} 46... Kf7 {[%clk
0:00:07.8]} 47. Rf6+ {[%clk 0:01:25.1]} 47... Ke7 {[%clk 0:00:06.5]} 48. Rxf5
{[%clk 0:01:26]} 48... c4 {[%clk 0:00:06.8]} 49. Re5+ {[%clk 0:01:22.7]} 49...
Kd6 {[%clk 0:00:06.5]} 50. Re3 {[%clk 0:01:23]} 50... Rc2+ {[%clk 0:00:05.6]}
51. Kf3 {[%clk 0:01:23.3]} 51... c3 {[%clk 0:00:05.4]} 52. g6 {[%clk 0:01:23.7]}
52... Rc1 {[%clk 0:00:05.1]} 53. g7 {[%clk 0:01:14.6]} 53... Rg1 {[%clk
0:00:05]} 54. Rxc3 {[%clk 0:01:14.9]} 54... Rxg7 {[%clk 0:00:05.1]} 55. Re3
{[%clk 0:01:12.5]} 55... Re7 {[%clk 0:00:04.3]} 56. Ra3 {[%clk 0:01:05]} 56...
Ke6 {[%clk 0:00:03.2]} 57. Ra5 {[%clk 0:01:05.7]} 57... Kf6 {[%clk 0:00:03.4]}
58. Ra6+ {[%clk 0:01:05.1]} 58... Kf5 {[%clk 0:00:02.7]} 59. Ra5+ {[%clk
0:01:05.6]} 59... Kf6 {[%clk 0:00:03.2]} 60. Kg4 {[%clk 0:01:06.5]} 60... Rg7+
{[%clk 0:00:03]} 61. Kh3 {[%clk 0:01:07]} 61... Rb7 {[%clk 0:00:03.4]} 62. Kh4
{[%clk 0:01:06.3]} 62... Rh7+ {[%clk 0:00:03.1]} 63. Kg4 {[%clk 0:01:06.7]}
63... Rg7+ {[%clk 0:00:03.5]} 64. Kf3 {[%clk 0:01:07.4]} 64... Rb7 {[%clk
0:00:03.6]} 65. Rh5 {[%clk 0:01:07.9]} 65... Rb3+ {[%clk 0:00:03.6]} 66. Kg4
{[%clk 0:01:08.5]} 66... Rb7 {[%clk 0:00:03.1]} 67. Rh6+ {[%clk 0:01:08.4]}
67... Kg7 {[%clk 0:00:03.5]} 68. Rc6 {[%clk 0:01:08.9]} 68... Rb5 {[%clk
0:00:03.6]} 69. Rc7+ {[%clk 0:01:08.3]} 69... Kf6 {[%clk 0:00:03.9]} 70. Ra7
{[%clk 0:01:08.8]} 70... Rb4 {[%clk 0:00:03.4]} 71. Ra6+ {[%clk 0:01:08.4]}
71... Kf7 {[%clk 0:00:03.8]} 72. Kg5 {[%clk 0:01:08.9]} 72... Rb5+ {[%clk
0:00:03.7]} 73. f5 {[%clk 0:01:08.8]} 73... Rb1 {[%clk 0:00:03.7]} 74. Ra7+
{[%clk 0:01:08.9]} 74... Kf8 {[%clk 0:00:03.9]} 75. Kg6 {[%clk 0:01:09.3]} 75...
Rf1 {[%clk 0:00:02.9]} 76. Kf6 {[%clk 0:01:01.5]} 76... Kg8 {[%clk 0:00:02.5]}
77. Rg7+ {[%clk 0:01:02.1]} 77... Kf8 {[%clk 0:00:02.8]} 78. Rd7 {[%clk
0:01:00.2]} 78... Kg8 {[%clk 0:00:03.2]} 79. Rd8+ {[%clk 0:01:00.8]} 79... Kh7
{[%clk 0:00:03.4]} 80. Ke7 {[%clk 0:01:01.4]} 80... Re1+ {[%clk 0:00:03.6]} 81.
Kf7 {[%clk 0:01:01.5]} 81... Ra1 {[%clk 0:00:04.1]} 82. f6 {[%clk 0:01:00.6]}
82... Ra7+ {[%clk 0:00:03.8]} 83. Ke6 {[%clk 0:01:01.1]} 83... Kg6 {[%clk
0:00:03.8]} 84. Rg8+ {[%clk 0:00:59.1]} 84... Kh7 {[%clk 0:00:04.2]} 85. Re8
{[%clk 0:00:59.1]} 85... Kg6 {[%clk 0:00:04]} 86. Rg8+ {[%clk 0:00:59.5]} 86...
Kh7 {[%clk 0:00:04.2]} 87. Rg2 {[%clk 0:01:00.4]} 87... Ra6+ {[%clk 0:00:04.2]}
88. Kf5 {[%clk 0:01:01]} 88... Ra5+ {[%clk 0:00:03.9]} 89. Ke4 {[%clk
0:01:01.7]} 89... Ra4+ {[%clk 0:00:04]} 90. Kd5 {[%clk 0:01:02.1]} 90... Ra5+
{[%clk 0:00:04.1]} 91. Kd4 {[%clk 0:01:02.4]} 91... Ra4+ {[%clk 0:00:04.3]} 92.
Kc5 {[%clk 0:01:02.8]} 92... Rf4 {[%clk 0:00:04]} 93. Rg7+ {[%clk 0:00:59.3]}
93... Kh8 {[%clk 0:00:04.1]} 94. Rf7 {[%clk 0:01:00.2]} 94... Kg8 {[%clk
0:00:04.3]} 95. Rg7+ {[%clk 0:01:00.7]} 95... Kh8 {[%clk 0:00:04.6]} 96. Rg6
{[%clk 0:01:01.4]} 96... Kh7 {[%clk 0:00:05]} 97. Rg7+ {[%clk 0:01:02]} 97...
Kh8 {[%clk 0:00:05.5]} 1/2-1/2